fUST/lending_fUST_20241128
["ID","MTS","AMOUNT","RATE_DAILY","PERIOD"]
[343564825,1732725039995,-274.92022408,0.00024657,3]
[343564826,1732725040005,-500.0,0.00024657,3]
[343564827,1732725040015,-500.0,0.00024657,3]
[343564828,1732725040024,-500.0,0.00024657,3]
[343564829,1732725040035,-500.0,0.00024657,3]
[343564830,1732725040045,-500.0,0.00024657,3]
[343564832,1732725040055,-500.0,0.00024657,3]
[343564834,1732725040064,-500.0,0.00024657,3]
[343564836,1732725040073,-500.0,0.00024657,3]
[343564837,1732725040083,-500.0,0.00024657,3]
[343564838,1732725040092,-539.23363693,0.00024657,3]
[343564839,1732725040102,-500.0,0.00024657,3]
[343564840,1732725040113,-500.0,0.00024657,3]
[343564841,1732725040132,-500.0,0.00024657,3]
[343564842,1732725040141,-575.60732421,0.00024657,3]
[343564843,1732725040151,-500.0,0.00024657,3]
[343564844,1732725040161,-500.0,0.00024657,3]
[343564845,1732725040171,-500.0,0.00024657,3]
[343564846,1732725040181,-500.0,0.00024657,3]
[343564847,1732725040190,-500.0,0.00024657,3]
[343564848,1732725040200,-500.0,0.00024657,3]
[343564849,1732725040209,-500.0,0.00024657,3]
[343564850,1732725040219,-407.07576864,0.00024657,3]
[343564851,1732725040229,-500.0,0.00024657,3]
[343564852,1732725040239,-292.05055242,0.00024657,3]
[343564854,1732725040250,-515.57865869,0.00024657,3]
[343564855,1732725040260,-500.0,0.00024657,3]
[343564856,1732725040270,-456.16345491,0.00024657,3]
[343564857,1732725040280,-500.0,0.00024657,3]
[343564858,1732725040293,-500.0,0.00024657,3]
[343564860,1732725040302,-421.2074914,0.00024657,3]
[343564861,1732725040313,-503.04952623,0.00024657,3]
[343564862,1732725040323,-500.0,0.00024657,3]
[343564863,1732725040332,-500.0,0.00024657,3]
[343564864,1732725040343,-500.0,0.00024657,3]
[343564865,1732725040352,-500.0,0.00024657,3]
[343564866,1732725040362,-500.0,0.00024657,3]
[343564867,1732725040371,-500.0,0.00024657,3]
[343564868,1732725040380,-500.0,0.00024657,3]
[343564869,1732725040391,-500.0,0.00024657,3]
[343564870,1732725040401,-500.0,0.00024657,3]
[343564871,1732725040410,-500.0,0.00024657,3]
[343564872,1732725040420,-500.0,0.00024657,3]
[343564873,1732725040430,-500.0,0.00024657,3]
[343564874,1732725040440,-500.0,0.00024657,3]
[343564875,1732725040449,-500.0,0.00024657,3]
[343564876,1732725040459,-500.0,0.00024657,3]
[343564877,1732725040469,-500.0,0.00024657,3]
[343564878,1732725040478,-500.0,0.00024657,3]
[343564879,1732725040488,-500.0,0.00024657,3]
[343564880,1732725040498,-500.0,0.00024657,3]
[343564881,1732725040508,-500.0,0.00024657,3]
[343564883,1732725040518,-500.0,0.00024657,3]
[343564885,1732725040529,-500.0,0.00024657,3]
[343564887,1732725040542,-501.58738749,0.00024657,3]
[343564888,1732725040552,-500.0,0.00024657,3]
[343564890,1732725040562,-500.0,0.00024657,3]
[343564892,1732725040571,-500.0,0.00024657,3]
[343564893,1732725040581,-500.0,0.00024657,3]
[343564894,1732725040591,-500.0,0.00024657,3]
[343564895,1732725040602,-500.0,0.00024657,3]
[343564896,1732725040612,-500.0,0.00024657,3]
[343564897,1732725040622,-309.76867354,0.00024657,3]
[343564898,1732725040631,-500.0,0.00024657,3]
[343564900,1732725040642,-500.0,0.00024657,3]
[343564901,1732725040653,-500.0,0.00024657,3]
[343564902,1732725040664,-500.0,0.00024657,3]
[343564903,1732725040674,-500.0,0.00024657,3]
[343564904,1732725040684,-500.0,0.00024657,3]
[343564905,1732725040693,-500.0,0.00024657,3]
[343564906,1732725040704,-500.0,0.00024657,3]
[343564907,1732725040714,-500.0,0.00024657,3]
[343564908,1732725040725,-500.0,0.00024657,3]
[343564909,1732725040733,-500.0,0.00024657,3]
[343564910,1732725040743,-500.0,0.00024657,3]
[343564911,1732725040753,-500.0,0.00024657,3]
[343564912,1732725040763,-500.0,0.00024657,3]
[343564913,1732725040772,-500.0,0.00024657,3]
[343564914,1732725040784,-420.3,0.00024657,3]
[343564915,1732725040793,-638.9233414,0.00024657,3]
[343564916,1732725040803,-500.0,0.00024657,3]
[343564917,1732725040811,-500.0,0.00024657,3]
[343564918,1732725040821,-500.0,0.00024657,3]
[343564919,1732725040830,-500.0,0.00024657,3]
[343564920,1732725040839,-500.0,0.00024657,3]
[343564921,1732725040849,-500.0,0.00024657,3]
[343564922,1732725040859,-500.0,0.00024657,3]
[343564924,1732725040869,-500.0,0.00024657,3]
[343564926,1732725040879,-500.0,0.00024657,3]
[343564928,1732725040888,-151.77,0.00024657,3]
[343564930,1732725040898,-500.0,0.00024657,3]
[343564931,1732725040907,-500.0,0.00024657,3]
[343564932,1732725040916,-500.0,0.00024657,3]
[343564933,1732725040926,-500.0,0.00024657,3]
[343564934,1732725040936,-500.0,0.00024657,3]
[343564935,1732725040945,-500.0,0.00024657,3]
[343564936,1732725040954,-463.44715951,0.00024657,3]
[343564937,1732725040964,-500.0,0.00024657,3]
[343564938,1732725040973,-500.0,0.00024657,3]
[343564939,1732725040983,-500.0,0.00024657,3]
[343564940,1732725040993,-263.00133938,0.00024657,3]
[343564941,1732725041002,-500.0,0.00024657,3]
[343564942,1732725041012,-500.0,0.00024657,3]
[343564943,1732725041023,-500.0,0.00024657,3]
[343564944,1732725041035,-500.0,0.00024657,3]
[343564945,1732725041044,-500.0,0.00024657,3]
[343564946,1732725041054,-500.0,0.00024657,3]
[343564947,1732725041064,-500.26789487,0.00024657,3]
[343564948,1732725041073,-500.0,0.00024657,3]
[343564949,1732725041083,-500.0,0.00024657,3]
[343564950,1732725041092,-500.0,0.00024657,3]
[343564951,1732725041102,-500.0,0.00024657,3]
[343564952,1732725041112,-500.0,0.00024657,3]
[343564953,1732725041125,-500.0,0.00024657,3]
[343564954,1732725041135,-430.04080009,0.00024657,3]
[343564955,1732725041145,-500.0,0.00024657,3]
[343564956,1732725041155,-500.0,0.00024657,3]
[343564957,1732725041165,-500.0,0.00024657,3]
[343564958,1732725041175,-500.0,0.00024657,3]
[343564959,1732725041185,-500.0,0.00024657,3]
[343564960,1732725041195,-500.0,0.00024657,3]
[343564961,1732725041204,-346.91821544,0.00024657,3]
[343564962,1732725041215,-500.0,0.00024657,3]
[343564963,1732725041225,-500.0,0.00024657,3]
[343564964,1732725041235,-500.0,0.00024657,3]
[343564965,1732725041245,-500.0,0.00024657,3]
[343564966,1732725041255,-500.0,0.00024657,3]
[343564967,1732725041265,-500.0,0.00024657,3]
[343564968,1732725041274,-500.0,0.00024657,3]
[343564969,1732725041286,-500.0,0.00024657,3]
[343564970,1732725041296,-153.55,0.00024657,3]
[343564971,1732725041306,-500.0,0.00024657,3]
[343564972,1732725041315,-500.0,0.00024657,3]
[343564973,1732725041325,-500.0,0.00024657,3]
[343564974,1732725041335,-500.0,0.00024657,3]
[343564975,1732725041345,-500.0,0.00024657,3]
[343564976,1732725041355,-500.0,0.00024657,3]
[343564977,1732725041364,-500.0,0.00024657,3]
[343564978,1732725041374,-500.0,0.00024657,3]
[343564979,1732725041384,-500.0,0.00024657,3]
[343564980,1732725041393,-500.0,0.00024657,3]
[343564981,1732725041403,-500.0,0.00024657,3]
[343564982,1732725041413,-500.0,0.00024657,3]
[343564983,1732725041423,-500.0,0.00024657,3]
[343564984,1732725041432,-500.0,0.00024657,3]
[343564985,1732725041442,-587.5919612,0.00024657,3]
[343564986,1732725041452,-500.0,0.00024657,3]
[343564987,1732725041461,-500.0,0.00024657,3]
[343564988,1732725041471,-500.0,0.00024657,3]
[343564989,1732725041480,-500.0,0.00024657,3]
[343564990,1732725041490,-500.0,0.00024657,3]
[343564991,1732725041499,-500.0,0.00024657,3]
[343564992,1732725041619,-500.0,0.00024657,3]
[343564993,1732725041630,-500.0,0.00024657,3]
[343564994,1732725041639,-500.0,0.00024657,3]
[343564995,1732725041649,-500.0,0.00024657,3]
[343564996,1732725041659,-500.0,0.00024657,3]
[343564997,1732725041668,-160.03671695,0.00024657,3]
[343564998,1732725041678,-500.0,0.00024657,3]
[343564999,1732725041688,-500.0,0.00024657,3]
[343565000,1732725041697,-500.0,0.00024657,3]
[343565001,1732725041706,-500.0,0.00024657,3]
[343565002,1732725041716,-500.0,0.00024657,3]
[343565003,1732725041727,-500.0,0.00024657,3]
[343565004,1732725041736,-597.49,0.00024657,3]
[343565005,1732725041746,-502.52478463,0.00024657,3]
[343565006,1732725041755,-500.0,0.00024657,3]
[343565007,1732725041765,-571.12,0.00024657,3]
[343565008,1732725041775,-500.0,0.00024657,3]
[343565009,1732725041785,-501.82492742,0.00024657,3]
[343565010,1732725041794,-500.0,0.00024657,3]
[343565011,1732725041804,-500.0,0.00024657,3]
[343565012,1732725041813,-502.0319217,0.00024657,3]
[343565013,1732725041822,-500.0,0.00024657,3]
[343565014,1732725041832,-500.0,0.00024657,3]
[343565015,1732725041841,-502.91503986,0.00024657,3]
[343565016,1732725041851,-644.72000849,0.00024657,3]
[343565017,1732725041861,-631.89906472,0.00024657,3]
[343565018,1732725041871,-500.0,0.00024657,3]
[343565019,1732725041880,-500.0,0.00024657,3]
[343565020,1732725041890,-506.1729223,0.00024657,3]
[343565021,1732725041900,-500.79208008,0.00024657,3]
[343565022,1732725041909,-641.09564078,0.00024657,3]
[343565023,1732725041919,-500.0,0.00024657,3]
[343565024,1732725041929,-500.0,0.00024657,3]
[343565025,1732725041939,-506.65555527,0.00024657,3]
[343565026,1732725041950,-500.0,0.00024657,3]
[343565027,1732725041961,-500.0,0.00024657,3]
[343565028,1732725041970,-500.0,0.00024657,3]
[343565029,1732725041980,-502.52988152,0.00024657,3]
[343565030,1732725041990,-500.0,0.00024657,3]
[343565031,1732725041999,-500.0,0.00024657,3]
[343565032,1732725042008,-500.0,0.00024657,3]
[343565033,1732725042018,-500.0,0.00024657,3]
[343565034,1732725042028,-500.0,0.00024657,3]
[343565035,1732725042039,-500.0,0.00024657,3]
[343565036,1732725042048,-500.0,0.00024657,3]
[343565037,1732725042057,-500.0,0.00024657,3]
[343565038,1732725042066,-500.0,0.00024657,3]
[343565039,1732725042076,-500.0,0.00024657,3]
[343565040,1732725042085,-500.0,0.00024657,3]
[343565041,1732725042095,-500.0,0.00024657,3]
[343565042,1732725042104,-500.0,0.00024657,3]
[343565043,1732725042114,-500.0,0.00024657,3]
[343565044,1732725042127,-500.0,0.00024657,3]
[343565045,1732725042136,-500.0,0.00024657,3]
[343565046,1732725042146,-506.85280138,0.00024657,3]
[343565047,1732725042156,-500.0,0.00024657,3]
[343565048,1732725042168,-414.54048949,0.00024657,3]
[343565049,1732725042178,-171.1,0.00024657,3]
[343565050,1732725042187,-500.0,0.00024657,3]
[343565051,1732725042198,-500.0,0.00024657,3]
[343565052,1732725042209,-500.0,0.00024657,3]
[343565053,1732725042218,-500.0,0.00024657,3]
[343565054,1732725042227,-500.0,0.00024657,3]
[343565055,1732725042236,-500.0,0.00024657,3]
[343565056,1732725042246,-500.0,0.00024657,3]
[343565057,1732725042255,-500.0,0.00024657,3]
[343565058,1732725042265,-500.0,0.00024657,3]
[343565059,1732725042275,-500.0,0.00024657,3]
[343565060,1732725042285,-500.0,0.00024657,3]
[343565061,1732725042295,-500.0,0.00024657,3]
[343565062,1732725042304,-500.0,0.00024657,3]
[343565063,1732725042313,-500.0,0.00024657,3]
[343565064,1732725042323,-500.0,0.00024657,3]
[343565065,1732725042332,-500.0,0.00024657,3]
[343565066,1732725042341,-500.0,0.00024657,3]
[343565067,1732725042350,-500.0,0.00024657,3]
[343565068,1732725042360,-500.0,0.00024657,3]
[343565069,1732725042369,-500.0,0.00024657,3]
[343565070,1732725042379,-500.0,0.00024657,3]
[343565071,1732725042388,-500.0,0.00024657,3]
[343565072,1732725042398,-500.0,0.00024657,3]
[343565073,1732725042407,-500.0,0.00024657,3]
[343565074,1732725042417,-500.0,0.00024657,3]
[343565075,1732725042426,-500.0,0.00024657,3]
[343565076,1732725042436,-648.40222456,0.00024657,3]
[343565077,1732725042446,-427.90533319,0.00024657,3]
[343565078,1732725042455,-500.0,0.00024657,3]
[343565079,1732725042464,-500.0,0.00024657,3]
[343565080,1732725042474,-572.06,0.00024657,3]
[343565081,1732725042484,-500.0,0.00024657,3]
[343565082,1732725042493,-500.0,0.00024657,3]
[343565083,1732725042503,-500.0,0.00024657,3]
[343565084,1732725042512,-500.0,0.00024657,3]
[343565085,1732725042522,-234.41,0.00024657,3]
[343565086,1732725042531,-500.0,0.00024657,3]
[343565087,1732725042543,-500.0,0.00024657,3]
[343565088,1732725042552,-500.0,0.00024657,3]
[343565089,1732725042561,-500.0,0.00024657,3]
[343565090,1732725042570,-500.0,0.00024657,3]
[343565091,1732725042580,-500.0,0.00024657,3]
[343565092,1732725042589,-500.0,0.00024657,3]
[343565093,1732725042599,-500.0,0.00024657,3]
[343565094,1732725042608,-500.0,0.00024657,3]
[343565095,1732725042618,-500.0,0.00024657,3]
[343565096,1732725042627,-500.0,0.00024657,3]
[343565097,1732725042636,-500.0,0.00024657,3]
[343565098,1732725042646,-500.0,0.00024657,3]
[343565099,1732725042656,-500.0,0.00024657,3]
[343565100,1732725042667,-500.0,0.00024657,3]
[343565101,1732725042676,-500.0,0.00024657,3]
[343565102,1732725042685,-500.0,0.00024657,3]
[343565103,1732725042695,-500.0,0.00024657,3]
[343565104,1732725042705,-473.89945647,0.00024657,3]
[343565105,1732725042714,-500.0,0.00024657,3]
[343565106,1732725042723,-500.0,0.00024657,3]
[343565107,1732725042733,-500.0,0.00024657,3]
[343565108,1732725042742,-500.0,0.00024657,3]
[343565109,1732725042752,-500.0,0.00024657,3]
[343565110,1732725042761,-500.0,0.00024657,3]
[343565111,1732725042771,-500.0,0.00024657,3]
[343565112,1732725042780,-500.0,0.00024657,3]
[343565113,1732725042792,-409.76110564,0.00024657,3]
[343565114,1732725042802,-500.0,0.00024657,3]
[343565115,1732725042811,-500.0,0.00024657,3]
[343565116,1732725042821,-500.0,0.00024657,3]
[343565117,1732725042830,-500.0,0.00024657,3]
[343565118,1732725042839,-220.35872405,0.00024657,3]
[343565119,1732725042849,-500.0,0.00024657,3]
[343565120,1732725042858,-500.0,0.00024657,3]
[343565121,1732725042868,-500.0,0.00024657,3]
[343565122,1732725042877,-500.0,0.00024657,3]
[343565123,1732725042887,-500.0,0.00024657,3]
[343565124,1732725042896,-500.0,0.00024657,3]
[343565125,1732725042906,-500.0,0.00024657,3]
[343565126,1732725042915,-467.35443598,0.00024657,3]
[343565127,1732725042925,-500.0,0.00024657,3]
[343565128,1732725042934,-500.0,0.00024657,3]
[343565129,1732725042944,-500.0,0.00024657,3]
[343565130,1732725042956,-500.0,0.00024657,3]
[343565131,1732725042966,-500.0,0.00024657,3]
[343565132,1732725042976,-500.0,0.00024657,3]
[343565133,1732725042985,-500.0,0.00024657,3]
[343565134,1732725042994,-500.0,0.00024657,3]
[343565135,1732725043004,-500.0,0.00024657,3]
[343565136,1732725043013,-500.0,0.00024657,3]
[343565137,1732725043022,-500.0,0.00024657,3]
[343565138,1732725043031,-500.0,0.00024657,3]
[343565139,1732725043043,-225.57523187,0.00024657,3]
[343565141,1732725043053,-500.0,0.00024657,3]
[343565143,1732725043063,-500.0,0.00024657,3]
[343565145,1732725043072,-500.0,0.00024657,3]
[343565146,1732725043082,-500.0,0.00024657,3]
[343565147,1732725043091,-500.0,0.00024657,3]
[343565148,1732725043101,-500.0,0.00024657,3]
[343565149,1732725043110,-500.0,0.00024657,3]
[343565150,1732725043121,-412.05916029,0.00024657,3]
[343565151,1732725043131,-500.0,0.00024657,3]
[343565152,1732725043141,-500.0,0.00024657,3]
[343565153,1732725043150,-500.0,0.00024657,3]
[343565154,1732725043159,-500.0,0.00024657,3]
[343565155,1732725043170,-500.0,0.00024657,3]
[343565156,1732725043180,-500.0,0.00024657,3]
[343565158,1732725043189,-500.0,0.00024657,3]
[343565159,1732725043200,-500.0,0.00024657,3]
[343565160,1732725043210,-500.0,0.00024657,3]
[343565161,1732725043219,-428.4161361,0.00024657,3]
[343565162,1732725043229,-500.0,0.00024657,3]
[343565163,1732725043238,-227.77097201,0.00024657,3]
[343565165,1732725043247,-299.41611021,0.00024657,3]
[343565166,1732725043256,-500.0,0.00024657,3]
[343565167,1732725043266,-503.42804995,0.00024657,3]
[343565168,1732725043275,-506.41494876,0.00024673,2]
[343565169,1732725043285,-500.0,0.00024673,2]
[343565170,1732725043295,-500.0,0.00024673,2]
[343565172,1732725043303,-500.0,0.00024673,2]
[343565173,1732725043313,-160.09582971,0.00024673,2]
[343565174,1732725043323,-160.09709298,0.00024673,2]
[343565175,1732725043332,-500.0,0.00024673,2]
[343565176,1732725043341,-500.0,0.00024673,2]
[343565177,1732725043350,-553.10676509,0.00024673,2]
[343565178,1732725043360,-510.19432561,0.00024673,2]
[343565179,1732725043369,-151.0,0.000247,10]
[343565180,1732725043379,-500.0,0.00024799,2]
[343565181,1732725043388,-500.0,0.00024799,2]
[343565182,1732725043398,-535.74853124,0.00024799,2]
[343565183,1732725043408,-614.39801371,0.00024799,2]
[343565184,1732725043417,-167.19035208,0.00024799,2]
[343565185,1732725043427,-500.0,0.00024799,2]
[343565186,1732725043436,-500.0,0.00024799,2]
[343565187,1732725043445,-500.0,0.00024799,2]
[343565188,1732725043455,-617.72605363,0.00024799,2]
[343565189,1732725043464,-151.0,0.000248,9]
[343565190,1732725043474,-420.0,0.00024806,2]
[343565191,1732725043483,-275.5,0.00025,2]
[343565192,1732725043492,-12324.98962859,0.00025,7]
[343565193,1732725043502,-302.69733596,0.00025,2]
[343565194,1732725043513,-16509.92800865,0.0002509,2]
[343565195,1732725043523,-1000.0,0.00025121,2]
[343565196,1732725043532,-1000.0,0.00025121,2]
[343565197,1732725043544,-1000.0,0.00025121,2]
[343565198,1732725043554,-420.0,0.00025132,2]
[343565199,1732725043563,-300.0,0.000252,2]
[343565201,1732725043572,-601.54523118,0.00025221,2]
[343565202,1732725043584,-1000.0,0.00025221,2]
[343565205,1732725043594,-1000.0,0.00025221,2]
[343565206,1732725043603,-1000.0,0.00025221,2]
[343565209,1732725043614,-302.69733596,0.0002525,2]
[343565211,1732725043624,-151.0,0.000253,12]
[343565212,1732725043634,-151.0,0.000253,12]
[343565214,1732725043645,-151.0,0.000253,12]
[343565215,1732725043655,-266.611786,0.000255,2]
[343565216,1732725043664,-76198.58338063,0.000255,2]
[343565217,1732725043674,-151.0,0.000256,19]
[343565218,1732725043684,-267.875,0.00025661,10]
[343565219,1732725043693,-151.0,0.000259,15]
[343565220,1732725043705,-151.0,0.000259,10]
[343565221,1732725043715,-3223.42,0.00025901,3]
[343565222,1732725043726,-1611.7,0.00025901,3]
[343565223,1732725043735,-805.86,0.00025901,3]
[343565224,1732725043745,-402.92,0.00025906,3]
[343565225,1732725043756,-151.0,0.00026,20]
[343565226,1732725043767,-102619.31251805,0.00026,30]
[343565227,1732725043793,-34134.43094624,0.00026,30]
[343565229,1732725043802,-655.81835245,0.00026122,2]
[343565230,1732725043811,-1649.93497964,0.00026122,2]
[343565231,1732725043820,-300.0,0.000262,2]
[343565232,1732725043830,-1572.4083878,0.00026217,2]
[343565233,1732725043839,-1500.0,0.00026222,2]
[343565234,1732725043848,-1500.0,0.00026222,2]
[343565235,1732725043857,-151.0,0.000264,19]
[343565236,1732725043866,-151.0,0.000266,10]
[343565237,1732725043876,-151.0,0.000266,14]
[343565238,1732725043886,-151.0,0.000267,16]
[343565239,1732725043895,-587.0,0.00026932,2]
[343565240,1732725043904,-151.0,0.00027082,5]
[343565241,1732725043914,-300.0,0.000272,2]
[343565242,1732725043924,-151.0,0.000272,20]
[343565243,1732725043934,-151.0,0.000273,13]
[343565244,1732725043944,-151.0,0.000273,11]
[343565245,1732725043953,-151.0,0.000273,20]
[343565246,1732725043962,-188.0,0.00027397,30]
[343565247,1732725043972,-188.0,0.00027397,30]
[343565248,1732725043983,-188.0,0.00027397,30]
[343565249,1732725043994,-188.0,0.00027397,30]
[343565250,1732725044003,-188.0,0.00027397,30]
[343565251,1732725044013,-188.0,0.00027397,30]
[343565252,1732725044022,-275.48966603,0.00027397,30]
[343565253,1732725044031,-500.0,0.00027397,3]
[343565254,1732725044045,-500.0,0.00027397,3]
[343565255,1732725044055,-500.0,0.00027397,3]
[343565256,1732725044064,-500.0,0.00027397,3]
[343565257,1732725044073,-500.0,0.00027397,3]
[343565258,1732725044082,-500.0,0.00027397,3]
[343565259,1732725044091,-414.04063041,0.00027397,3]
[343565260,1732725044100,-211.86711422,0.00027397,2]
[343565261,1732725044110,-520.7019209,0.00027397,2]
[343565262,1732725044125,-500.0,0.000274,5]
[343565263,1732725044135,-505.09796599,0.0002752,5]
[343565264,1732725044144,-344.31383677,0.0002752,5]
[343565265,1732725044156,-151.0,0.00027549,5]
[343565266,1732725044166,-587.0,0.00027645,2]
[343565267,1732725044176,-1572.4083878,0.00027878,2]
[343565268,1732725044186,-1000.0,0.00027948,5]
[343565269,1732725044196,-151.0,0.00028,18]
[343565270,1732725044207,-151.0,0.00028,13]
[343565271,1732725044217,-151.0,0.00028,15]
[343565272,1732725044227,-25757.28281486,0.00028,30]
[343565273,1732725044239,-14937.87305757,0.00028,30]
[343565274,1732725044249,-6390.0763772,0.00028,7]
[343565275,1732725044259,-2648.54103079,0.00028,2]
[343565276,1732725044273,-5415.98088921,0.00024115,2]
[343565277,1732725044283,-12406.51911081,0.00028,2]
[343565278,1732725044314,-13393.1281049,0.00028,2]
[343565279,1732725044325,-1533.38627582,0.00028,2]
[343565302,1732725046637,-5415.98088921,0.00025295,2]
[343565304,1732725046647,-26307.59321412,0.00028,2]
[343565306,1732725046656,-2000.0,0.00028,7]
[343565319,1732725046769,-151.0,0.00028,20]
[343565321,1732725046778,-151.0,0.00028016,5]
[343565324,1732725046788,-153.0,0.00028025,2]
[343565327,1732725046798,-2009.66,0.000281,2]
[343565329,1732725046808,-389.28558578,0.0002816,3]
[343565331,1732725046817,-244.2943767,0.0002816,3]
[343565333,1732725046826,-1232.635426,0.0002816,2]
[343565335,1732725046835,-185.993507,0.0002816,2]
[343565337,1732725046844,-1820.518879,0.0002816,2]
[343565339,1732725046853,-298.03528,0.0002816,2]
[343565341,1732725046862,-172.077301,0.0002816,2]
[343565343,1732725046871,-300.0,0.000282,2]
[343565345,1732725046880,-337.44528694,0.000282,2]
[343565347,1732725046889,-151.0,0.00028482,6]
[343565349,1732725046901,-1232.635426,0.00028512,2]
[343565351,1732725046911,-185.993507,0.00028512,2]
[343565353,1732725046920,-1721.85117125,0.00028512,2]
[343565356,1732725046932,-98.66770775,0.00028512,2]
[343565358,1732725046944,-298.03528,0.00028512,2]
[343565360,1732725046954,-172.077301,0.00028512,2]
[343565362,1732725046963,-151.0,0.000286,14]
[343565364,1732725046972,-151.0,0.000286,18]
[343565366,1732725046981,-151.0,0.000287,18]
[343565367,1732725046990,-606.564,0.00028738,2]
[343565370,1732725047001,-1104.0,0.00028738,2]
[343565372,1732725047014,-2377.0,0.00028738,2]
[343565374,1732725047023,-1621.455,0.00028738,2]
[343565376,1732725047032,-500.0,0.00028767,2]
[343565378,1732725047044,-151.0,0.000288,16]
[343565380,1732725047053,-500.0,0.00028813,5]
[343565382,1732725047061,-161.88669151,0.00028837,2]
[343565498,1732725303207,1043.76,0.0002,5]
[343565499,1732725477863,165.749499,0.00013973,2]
[343565502,1732726046105,-430.2114758,0.00023059,2]
[343565503,1732726046126,-167.488757,0.00023387,2]
[343565504,1732726046146,-2455.663738,0.0002385,2]
[343565513,1732726210949,166.33832,0.00013973,2]
[343565570,1732726232041,-192.5701824,0.00023491,2]
[343565572,1732726232050,-646.391597,0.00023654,2]
[343565574,1732726232060,-204.197094,0.00023657,2]
[343565576,1732726232069,-1352.270948,0.00023841,2]
[343565578,1732726232081,-869.7518484,0.0002385,2]
[343565580,1732726232090,-300.0,0.00024646,2]
[343565582,1732726232099,-300.0,0.00024646,2]
[343565584,1732726232109,-848.0088983,0.00024647,3]
[343565586,1732726232123,-260.0411017,0.00024647,3]
[343565588,1732726232133,-554.02,0.00024647,3]
[343565590,1732726232142,-277.01,0.00024647,3]
[343565592,1732726232151,-348.47217853,0.00024647,3]
[343565594,1732726232162,-482.59782147,0.00024647,3]
[343565596,1732726232171,-255.35352814,0.00024656,2]
[343565598,1732726232180,-1565.17887881,0.00024656,2]
[343565600,1732726232189,-1105.33354542,0.00024656,2]
[343565641,1732726237980,-3894.66645458,0.00024656,2]
[343565643,1732726237990,-5000.0,0.00024656,2]
[343565645,1732726238000,-3547.01490092,0.00024656,2]
[343565648,1732726238037,-1452.98509908,0.00024656,2]
[343565650,1732726238046,-500.0,0.00024656,2]
[343565652,1732726238056,-500.0,0.00024656,2]
[343565654,1732726238065,-500.0,0.00024656,2]
[343565656,1732726238074,-500.0,0.00024656,2]
[343565658,1732726238083,-500.0,0.00024656,2]
[343565660,1732726238093,-500.0,0.00024656,2]
[343565662,1732726238102,-192.63961902,0.00024656,2]
[343565664,1732726238112,-500.0,0.00024656,2]
[343565666,1732726238124,-500.0,0.00024656,2]
[343565668,1732726238133,-500.0,0.00024656,2]
[343565670,1732726238142,-500.0,0.00024656,2]
[343565672,1732726238151,-500.0,0.00024656,2]
[343565674,1732726238160,-500.0,0.00024656,2]
[343565676,1732726238169,-500.0,0.00024656,2]